bitfinex/quotes_BTCUSD_20250709
["timestamp","ask_amount","ask_price","bid_price","bid_amount"]
[1752020353949,0.67111947,108970.0,108960.0,0.46410935]
[1752020354374,0.66194289,108970.0,108960.0,0.46410935]
[1752020354540,0.65276656,108970.0,108960.0,0.46510935]
[1752020354737,0.66824622,108980.0,108970.0,0.21106624]
[1752020354738,0.05095156,108980.0,108970.0,0.21106624]
[1752020354940,0.6853658,108980.0,108970.0,0.22828614]
[1752020355196,0.67111727,108980.0,108970.0,0.22828614]
[1752020355591,0.33111727,108980.0,108970.0,0.22828614]
[1752020355804,0.33111727,108980.0,108970.0,0.26961629]
[1752020356034,0.33111727,108980.0,108970.0,0.32472605]
[1752020356243,0.34129318,108980.0,108970.0,0.32472605]
[1752020356446,0.33211727,108980.0,108970.0,0.2833959]
[1752020356563,0.33211727,108980.0,108970.0,0.32468852]
[1752020358352,0.32294145,108980.0,108970.0,0.32468852]
[1752020358563,0.32294137,108980.0,108970.0,0.32468852]
[1752020358928,0.33211711,108980.0,108970.0,0.32468852]
[1752020359134,0.34129293,108980.0,108970.0,0.32468852]
[1752020359350,0.35649293,108980.0,108970.0,0.32468852]
[1752020359971,0.34731711,108980.0,108970.0,0.32468852]
[1752020360573,0.34731711,108980.0,108970.0,0.26957876]
[1752020361372,0.34731711,108980.0,108970.0,0.30258149]
[1752020362640,0.03455097,108980.0,108970.0,0.30258149]
[1752020362934,0.04372671,108980.0,108970.0,0.30258149]
[1752020363295,0.03455097,108980.0,108970.0,0.30258149]
[1752020363459,0.05290253,108980.0,108970.0,0.30258149]
[1752020363722,0.35649293,108980.0,108970.0,0.30258149]
[1752020363950,0.37289293,108980.0,108970.0,0.30258149]
[1752020364569,0.36371711,108980.0,108970.0,0.30258149]
[1752020366820,0.05095105,108980.0,108970.0,0.30258149]
[1752020367213,0.35454137,108980.0,108970.0,0.30258149]
[1752020368276,0.36371711,108980.0,108970.0,0.30258149]
[1752020369004,0.35454137,108980.0,108970.0,0.30258149]
[1752020369152,0.36371702,108980.0,108970.0,0.3025542]
[1752020371108,0.37289284,108980.0,108970.0,0.3025542]
[1752020371314,0.36371702,108980.0,108970.0,0.3025542]
[1752020371933,0.36371702,108980.0,108970.0,0.30255065]
[1752020374310,0.0253754,108980.0,108970.0,0.30255065]
[1752020374512,0.03455105,108980.0,108970.0,0.30255065]
[1752020374652,0.34731719,108980.0,108970.0,0.30255065]
[1752020374856,0.35649301,108980.0,108970.0,0.30255065]
[1752020375277,0.35364145,108980.0,108970.0,0.30255065]
[1752020376205,0.33814145,108980.0,108970.0,0.30255065]
[1752020377781,0.34731719,108980.0,108970.0,0.30255065]
[1752020379404,0.34731719,108980.0,108970.0,0.35766041]
[1752020379600,0.37259301,108980.0,108970.0,0.30255065]
[1752020380026,0.38176892,108980.0,108970.0,0.30255065]
[1752020380224,0.55611377,108980.0,108970.0,0.29337441]
[1752020380435,0.55611377,108980.0,108970.0,0.48780417]
[1752020380651,0.25252337,108980.0,108970.0,0.49698058]
[1752020380856,0.55611377,108980.0,108970.0,0.49698616]
[1752020381126,0.25252337,108980.0,108970.0,0.50616249]
[1752020382125,0.55611377,108980.0,108970.0,0.50616249]
[1752020382308,0.54693803,108980.0,108970.0,0.48780975]
[1752020382452,0.53776221,108980.0,108970.0,0.48780975]
[1752020382667,0.53776221,108980.0,108970.0,0.43269999]
[1752020383518,0.53776221,108980.0,108970.0,0.48780975]
[1752020383844,0.53776221,108980.0,108970.0,0.48781645]
[1752020384461,0.3542423,108980.0,108970.0,0.49699278]
[1752020385517,0.53776221,108980.0,108970.0,0.45570016]
[1752020392591,0.53776221,108980.0,108970.0,0.45571347]
[1752020396676,0.53776221,108980.0,108970.0,0.44653714]
[1752020396900,0.53776221,108980.0,108970.0,0.45571355]
[1752020397306,0.53776221,108980.0,108970.0,0.48786372]
[1752020397722,0.53776221,108980.0,108970.0,0.4786873]
[1752020397931,0.53776221,108980.0,108970.0,0.48786388]
[1752020398340,0.53776221,108980.0,108970.0,0.47064923]
[1752020398545,0.53776221,108980.0,108970.0,0.4878688]
[1752020398911,0.53776221,108980.0,108970.0,0.4970453]
[1752020399123,0.53776221,108980.0,108970.0,0.47407146]
[1752020399531,0.3542423,108980.0,108970.0,0.47407146]
[1752020399921,0.53776221,108980.0,108970.0,0.47407146]
[1752020400295,0.53776221,108980.0,108970.0,0.46489513]
[1752020400494,0.53776221,108980.0,108970.0,0.50622173]
[1752020400924,0.53776221,108980.0,108970.0,0.46489513]
[1752020404840,0.53776221,108980.0,108970.0,0.45571872]
[1752020405065,0.5285863,108980.0,108970.0,0.43736564]
[1752020405290,0.51941031,108980.0,108970.0,0.43736564]
[1752020406700,0.51941031,108980.0,108970.0,0.44654239]
[1752020408209,0.51941031,108980.0,108970.0,0.42932282]
[1752020409919,0.51941031,108980.0,108970.0,0.42938543]
[1752020410352,0.51941031,108980.0,108970.0,0.43856209]
[1752020413770,0.51941031,108980.0,108970.0,0.45578446]
[1752020414621,0.51941031,108980.0,108970.0,0.46496096]
[1752020415238,0.51941031,108980.0,108970.0,0.45578446]
[1752020416245,0.51941031,108980.0,108970.0,0.46496104]
[1752020416464,0.51941031,108980.0,108970.0,0.32564104]
[1752020418793,0.51941031,108980.0,108970.0,0.31646446]
[1752020419435,0.51941031,108980.0,108970.0,0.32564104]
[1752020422774,0.51941031,108980.0,108970.0,0.33481927]
[1752020426464,0.51941031,108980.0,108970.0,0.33481936]
[1752020426638,0.52858613,108980.0,108970.0,0.33481936]
[1752020426847,0.52858613,108980.0,108970.0,0.33481886]
[1752020427268,0.3634177,108980.0,108970.0,0.33481886]
[1752020427690,0.54693761,108980.0,108970.0,0.33481886]
[1752020429348,0.54693761,108980.0,108970.0,0.33481915]
[1752020430662,0.54693761,108980.0,108970.0,0.32564282]
[1752020431088,0.54693761,108980.0,108970.0,0.31646632]
[1752020431327,0.53776204,108980.0,108970.0,0.31646632]
[1752020431538,0.53776204,108980.0,108970.0,0.32564282]
[1752020434384,0.53776204,108980.0,108970.0,0.33481923]
[1752020435084,0.53776204,108980.0,108970.0,0.33481944]
[1752020440016,0.53776204,108980.0,108970.0,0.33481902]
[1752020440224,0.35424179,108980.0,108970.0,0.3348186]
[1752020440444,0.47738179,108980.0,108970.0,0.3348186]
[1752020440664,0.34731711,108980.0,108970.0,0.3348186]
[1752020440892,0.33211711,108980.0,108970.0,0.3348186]
[1752020443218,0.34129302,108980.0,108970.0,0.3348186]
[1752020444499,0.33211711,108980.0,108970.0,0.3348186]
[1752020444904,0.33211703,108980.0,108970.0,0.3348186]
[1752020447545,0.34129285,108980.0,108970.0,0.3348186]
[1752020448006,0.33211703,108980.0,108970.0,0.3348186]
[1752020452427,0.001,108980.0,108970.0,0.3348186]
[1752020452588,0.001,108980.0,108970.0,0.45028061]
[1752020452788,0.001,108980.0,108970.0,0.54171754]
[1752020452991,0.001,108980.0,108970.0,0.48660778]
[1752020453191,0.001,108980.0,108970.0,0.40394577]
[1752020453412,0.001,108980.0,108970.0,0.61374313]
[1752020453603,0.4035904,108990.0,108980.0,0.24384687]
[1752020453814,0.4035904,108990.0,108980.0,0.4333769]
[1752020454061,0.4035904,108990.0,108980.0,0.51598327]
[1752020454710,0.4035904,108990.0,108980.0,0.51603039]
[1752020455438,0.4035904,108990.0,108980.0,0.51903039]
[1752020456880,0.4035904,108990.0,108980.0,0.52103039]
[1752020457281,0.4035904,108990.0,108980.0,0.57601336]
[1752020459038,0.4035904,108990.0,108980.0,0.5587904]
[1752020459440,0.1,108990.0,108980.0,0.5587904]
[1752020459648,0.4035904,108990.0,108980.0,0.5587904]
[1752020461487,0.1,108990.0,108980.0,0.59524436]
[1752020461684,0.1,108990.0,108980.0,0.51263799]
[1752020461884,0.1,108990.0,108980.0,0.65003897]
[1752020465179,0.4035904,108990.0,108980.0,0.54020499]
[1752020466477,0.1,108990.0,108980.0,0.54020499]
[1752020468003,0.4035904,108990.0,108980.0,0.54020499]
[1752020469364,0.4035904,108990.0,108980.0,0.5896395]
[1752020469589,0.4035904,108990.0,108980.0,0.4504395]
[1752020469828,0.1,108990.0,108980.0,0.64449063]
[1752020470059,0.10917456,108990.0,108980.0,0.64449063]
[1752020470273,0.10917448,108990.0,108980.0,0.64449063]
[1752020470521,0.10917439,108990.0,108980.0,0.64449063]
[1752020470864,0.1,108990.0,108980.0,0.64449063]
[1752020472340,0.4035904,108990.0,108980.0,0.64449063]
[1752020473215,0.4035904,108990.0,108980.0,0.5896395]
[1752020473438,0.1,108990.0,108980.0,0.5896395]
[1752020476909,0.14382419,108990.0,108980.0,0.4228725]
[1752020477132,0.14382419,108990.0,108980.0,0.5620325]
[1752020477133,0.15892411,108990.0,108980.0,0.5620325]
[1752020477382,0.14974921,108990.0,108980.0,0.52896543]
[1752020477630,0.15892419,108990.0,108980.0,0.56190541]
[1752020478304,0.15892419,108990.0,108980.0,0.61680736]
[1752020479655,0.14057448,108990.0,108980.0,0.52537043]
[1752020480089,0.14057439,108990.0,108980.0,0.52537043]
[1752020480510,0.1314,108990.0,108980.0,0.52537043]
[1752020481340,0.1314,108990.0,108980.0,0.47046848]
[1752020485085,0.14057439,108990.0,108980.0,0.47046848]
[1752020485416,0.1314,108990.0,108980.0,0.47046848]
[1752020495464,0.14057439,108990.0,108980.0,0.47046848]
[1752020496664,0.1314,108990.0,108980.0,0.47046848]
[1752020498209,0.14057439,108990.0,108980.0,0.47046848]
[1752020498861,0.1314,108990.0,108980.0,0.47046848]
[1752020499034,0.15892384,108990.0,108980.0,0.47046848]
[1752020499241,0.16809899,108990.0,108980.0,0.47964414]
[1752020499444,0.35160206,108990.0,108980.0,0.32213308]
[1752020499673,0.36077721,108990.0,108980.0,0.47046865]
[1752020499871,0.35160282,108990.0,108980.0,0.47046865]
[1752020500854,0.35160282,108990.0,108980.0,0.47964414]
[1752020502155,0.35160282,108990.0,108980.0,0.34048414]
[1752020502288,0.35160282,108990.0,108980.0,0.47964414]
[1752020502689,0.1589246,108990.0,108980.0,0.48881954]
[1752020505182,0.34242767,108990.0,108980.0,0.47046865]
[1752020505830,0.34242767,108990.0,108980.0,0.47964414]
[1752020506671,0.34242767,108990.0,108980.0,0.53471309]
[1752020507387,0.34242767,108990.0,108980.0,0.34048414]
[1752020507594,0.34242767,108990.0,108980.0,0.47964414]
[1752020508258,0.34242767,108990.0,108980.0,0.53471292]
[1752020514590,0.35160282,108990.0,108980.0,0.53471292]
[1752020515032,0.16809975,108990.0,108980.0,0.53471292]
[1752020518105,0.35160282,108990.0,108980.0,0.53471292]
[1752020518741,0.35160282,108990.0,108980.0,0.38637743]
[1752020518952,0.35160282,108990.0,108980.0,0.52553743]
[1752020519194,0.35160282,108990.0,108980.0,0.50718621]
[1752020519414,0.33325328,108990.0,108980.0,0.51636203]
[1752020519839,0.32407822,108990.0,108980.0,0.4980103]
[1752020520051,0.32407822,108990.0,108980.0,0.50718612]
[1752020527554,0.32407822,108990.0,108980.0,0.51636186]
[1752020529352,0.32407822,108990.0,108980.0,0.52553751]
[1752020530857,0.32407822,108990.0,108980.0,0.51636186]
[1752020533282,0.32407822,108990.0,108980.0,0.52553751]
[1752020534786,0.32407822,108990.0,108980.0,0.52564907]
[1752020535175,0.32407822,108990.0,108980.0,0.54286482]
[1752020536678,0.32407822,108990.0,108980.0,0.53368917]
[1752020537352,0.3886188,108990.0,108980.0,0.17544195]
[1752020537570,0.7286188,108990.0,108980.0,0.17544195]
[1752020537782,0.7286188,108990.0,108980.0,0.09316744]
[1752020538267,0.7286188,108990.0,108980.0,0.09116744]
[1752020538450,0.7286188,108990.0,108980.0,0.10043361]
[1752020539300,0.7286188,108990.0,108980.0,0.09743361]
[1752020539762,0.7286188,108990.0,108980.0,0.09943361]
[1752020542861,0.7286188,108990.0,108980.0,0.04436483]
[1752020548159,0.7286188,108990.0,108980.0,0.00304712]
[1752020550743,0.8677388,108990.0,108980.0,0.00304712]
[1752020561046,0.98872123,108990.0,108980.0,0.00304712]
[1752020562119,0.98872123,108990.0,108980.0,0.00204712]
[1752020563675,0.98872123,108990.0,108980.0,4.712e-05]
[1752020575231,0.97371658,108990.0,108980.0,4.712e-05]
[1752020575650,1.00067903,108990.0,108980.0,4.712e-05]
[1752020576284,1.00367903,108990.0,108980.0,4.712e-05]
[1752020579287,0.86455903,108990.0,108980.0,4.712e-05]
[1752020579487,1.00363903,108990.0,108980.0,0.01726143]
[1752020580534,0.9299233,108990.0,108980.0,0.01726143]
[1752020580736,0.9299233,108990.0,108980.0,0.0172618]
[1752020582647,0.9299233,108990.0,108980.0,0.01726201]
[1752020585135,0.7908433,108990.0,108980.0,0.01726201]
[1752020585353,0.9299233,108990.0,108980.0,0.01726201]
[1752020586557,0.87156085,108990.0,108980.0,0.01726201]
[1752020587154,0.88676085,108990.0,108980.0,0.01726201]
[1752020588754,0.88676085,108990.0,108980.0,0.01726207]
[1752020589493,0.90216085,108990.0,108980.0,0.01726207]
[1752020591712,0.90216085,108990.0,108980.0,0.01726428]
[1752020591920,0.88676085,108990.0,108980.0,0.01726428]
[1752020592153,0.87156085,108990.0,108980.0,0.01726428]
[1752020593223,0.77475805,108990.0,108980.0,0.23503592]
[1752020593433,0.77475805,108990.0,108980.0,0.25143592]
[1752020593642,0.77475805,108990.0,108980.0,0.2422601]
[1752020593764,0.77475805,108990.0,108980.0,0.25143592]
[1752020594173,0.77475805,108990.0,108980.0,0.23421876]
[1752020594567,0.77475805,108990.0,108980.0,0.04152311]
[1752020594781,0.77475805,108990.0,108980.0,0.03234712]
[1752020595190,0.77475805,108990.0,108980.0,0.07366483]
[1752020595606,0.77475805,108990.0,108980.0,0.09087794]
[1752020596086,0.77475805,108990.0,108980.0,0.09086783]
[1752020596757,0.77475805,108990.0,108980.0,0.07446783]
[1752020599308,0.77475805,108990.0,108980.0,0.05725472]
[1752020600341,0.77475805,108990.0,108980.0,0.01594712]
[1752020602407,0.91193583,108990.0,108980.0,4.712e-05]
[1752020606836,0.89673583,108990.0,108980.0,4.712e-05]
[1752020618187,0.91323583,108990.0,108980.0,4.712e-05]
[1752020619931,0.89673583,108990.0,108980.0,4.712e-05]
[1752020620288,0.88073583,108990.0,108980.0,4.712e-05]
[1752020625652,0.88069583,108990.0,108980.0,4.712e-05]
[1752020626286,0.88069583,108990.0,108980.0,0.04134185]
[1752020628068,0.88069583,108990.0,108980.0,4.712e-05]
[1752020628240,0.88069583,108990.0,108980.0,0.04134185]
[1752020628653,0.91129583,108990.0,108980.0,4.712e-05]
[1752020629475,0.9875199,108990.0,108980.0,4.712e-05]
[1752020629735,0.98501156,108990.0,108980.0,4.712e-05]
[1752020631109,1.01323723,108990.0,108980.0,4.712e-05]
[1752020652629,0.54190835,108960.0,108950.0,0.0321]
[1752020652830,0.68094835,108960.0,108950.0,0.03256736]
[1752020653709,0.68094835,108960.0,108950.0,0.03543857]
[1752020653931,0.68094835,108960.0,108950.0,0.03643857]
[1752020654601,0.68094835,108960.0,108950.0,0.03843857]
[1752020655071,0.69020186,108960.0,108950.0,0.03843857]
[1752020656987,0.55116186,108960.0,108950.0,0.03843857]
[1752020657204,0.69020186,108960.0,108950.0,0.03843857]
[1752020660627,0.55116186,108960.0,108950.0,0.03843857]
[1752020660837,0.69020186,108960.0,108950.0,0.03843857]
[1752020661911,0.54190835,108960.0,108950.0,0.03843857]
[1752020662127,0.68094835,108960.0,108950.0,0.04761709]
[1752020663275,0.68094835,108960.0,108950.0,0.04474588]
[1752020666616,0.35835476,108960.0,108950.0,0.22831632]
[1752020666844,0.69930277,108960.0,108950.0,0.24667259]
[1752020667064,0.35930277,108960.0,108950.0,0.25585086]
[1752020667243,0.35930277,108960.0,108950.0,0.29714559]
[1752020667690,0.35930277,108960.0,108950.0,0.31435096]
[1752020667909,0.35012577,108960.0,108950.0,0.30517286]
[1752020668136,0.33177118,108960.0,108950.0,0.29599468]
[1752020670900,0.33177118,108960.0,108950.0,0.30517286]
[1752020671109,0.33177118,108960.0,108950.0,0.29599468]
[1752020671802,0.33177118,108960.0,108950.0,0.30517286]
[1752020673103,0.33177118,108960.0,108950.0,0.25469995]
[1752020673354,0.33177118,108960.0,108950.0,0.29600443]
[1752020676715,0.32259359,108960.0,108950.0,0.28682617]
[1752020676931,0.32259359,108960.0,108950.0,0.2960046]
[1752020677691,0.32259359,108960.0,108950.0,0.30518295]
[1752020680172,0.32259359,108960.0,108950.0,0.30519458]
[1752020681663,0.32259359,108960.0,108950.0,0.31437284]
[1752020682324,0.32259359,108960.0,108950.0,0.09408884]
[1752020682530,0.32259359,108960.0,108950.0,0.28683771]
[1752020682652,0.32259359,108960.0,108950.0,0.27123771]
[1752020683111,0.32259359,108960.0,108950.0,0.27123913]
[1752020683910,0.32259359,108960.0,108950.0,0.28041748]
[1752020685102,0.32259359,108960.0,108950.0,0.289596]
[1752020685981,0.32259359,108960.0,108950.0,0.06339026]
[1752020687545,0.32259359,108960.0,108950.0,0.07256878]
[1752020688007,0.32259359,108960.0,108950.0,0.06339026]
[1752020691194,0.35569359,108960.0,108950.0,0.06339026]
[1752020692030,0.35569359,108960.0,108950.0,0.06626151]
[1752020692794,0.35569359,108960.0,108950.0,0.06426151]
[1752020693204,0.35569359,108960.0,108950.0,0.06526151]
[1752020693634,0.36213374,108960.0,108950.0,0.05445431]
[1752020693812,0.36213374,108960.0,108950.0,0.02108967]
[1752020694028,0.46811152,108960.0,108950.0,0.02108967]
[1752020694247,0.46811152,108960.0,108950.0,0.01821842]
[1752020694463,0.46811152,108960.0,108950.0,0.00645119]
[1752020694675,0.46811152,108960.0,108930.0,0.26019588]
[1752020694676,0.19274896,108950.0,108930.0,0.26019588]
[1752020694898,0.15735788,108940.0,108930.0,0.17792137]
[1752020695111,0.16379794,108940.0,108930.0,0.17792137]
[1752020696012,0.16379794,108940.0,108930.0,0.17892137]
[1752020696672,0.16379794,108940.0,108930.0,0.17792137]
[1752020697627,0.16379786,108940.0,108930.0,0.12293165]
[1752020697846,0.15461892,108940.0,108930.0,0.1252267]
[1752020698069,0.15461892,108940.0,108930.0,0.1272267]
[1752020698502,0.16379786,108940.0,108930.0,0.1272267]
[1752020698740,0.16379794,108940.0,108930.0,0.06473397]
[1752020698978,0.16379794,108940.0,108930.0,0.2460132]
[1752020699646,0.16379794,108940.0,108930.0,0.21586472]
[1752020699867,0.16379786,108940.0,108930.0,0.21586472]
[1752020700303,0.15461892,108940.0,108930.0,0.21586472]
[1752020700521,0.15461892,108940.0,108930.0,0.1943301]
[1752020700738,0.17297671,108940.0,108930.0,0.14808527]
[1752020700971,0.17297671,108940.0,108930.0,0.15038032]
[1752020701189,0.15461892,108940.0,108930.0,0.15956019]
[1752020701864,0.16379786,108940.0,108930.0,0.15956019]
[1752020702104,0.15461892,108940.0,108930.0,0.15956019]
[1752020702338,0.14544015,108940.0,108930.0,0.15956019]
[1752020702549,0.15461892,108940.0,108930.0,0.1014167]
[1752020702774,0.15461892,108940.0,108930.0,0.1171167]
[1752020703234,0.15461892,108940.0,108930.0,0.11482165]
[1752020703505,0.15461892,108940.0,108930.0,0.13012165]
[1752020703703,0.15461892,108940.0,108930.0,0.05690393]
[1752020703917,0.15461892,108940.0,108930.0,0.24047821]
[1752020704132,0.15461884,108940.0,108930.0,0.24047821]
[1752020704356,0.14544015,108940.0,108930.0,0.24047821]
[1752020705071,0.139,108940.0,108930.0,0.24047821]
[1752020707070,0.0920715,108950.0,108940.0,0.21112436]
[1752020707239,0.24024968,108950.0,108940.0,0.21112436]
[1752020707449,0.05274648,108950.0,108940.0,0.21112436]
[1752020707703,0.18256864,108950.0,108940.0,0.22622436]
[1752020707937,0.19174648,108950.0,108940.0,0.24212436]
[1752020708119,0.18256864,108950.0,108940.0,0.24212436]
[1752020708364,0.1917464,108950.0,108940.0,0.24212436]
[1752020708573,0.18843976,108950.0,108940.0,0.24212436]
[1752020709044,0.1966176,108950.0,108940.0,0.24212436]
[1752020709254,0.1966176,108950.0,108940.0,0.24312436]
[1752020709474,0.193878,108950.0,108940.0,0.24312436]
[1752020709692,0.20305593,108950.0,108940.0,0.24312436]
[1752020709843,0.194878,108950.0,108940.0,0.24312436]
[1752020710026,0.20405593,108950.0,108940.0,0.22722436]
[1752020710230,0.21223403,108950.0,108940.0,0.22722436]
[1752020710428,0.19661769,108950.0,108940.0,0.22722436]
[1752020710630,0.2057957,108950.0,108940.0,0.22822436]
[1752020710849,0.2057957,108950.0,108940.0,0.21312436]
[1752020711459,0.21223362,108950.0,108940.0,0.21312436]
[1752020711861,0.20305561,108950.0,108940.0,0.21312436]
[1752020713267,0.20305537,108950.0,108940.0,0.21312436]
[1752020714428,0.20305537,108950.0,108940.0,0.23033723]
[1752020714877,0.00643768,108950.0,108940.0,0.65566456]
[1752020715097,0.00643768,108950.0,108940.0,0.79466456]
[1752020715311,0.00643768,108950.0,108940.0,0.60092867]
[1752020715495,0.00643768,108950.0,108940.0,0.8873062]
[1752020719321,0.08015341,108950.0,108940.0,0.5837158]
[1752020719455,0.08015341,108950.0,108940.0,0.8873062]
[1752020721981,0.08015058,108950.0,108940.0,0.8873062]
[1752020722412,0.08015058,108950.0,108940.0,0.5837158]
[1752020722624,0.08015058,108950.0,108940.0,0.8873062]
[1752020723477,0.08015058,108950.0,108940.0,0.8721062]
[1752020723661,0.08015058,108950.0,108940.0,0.5534158]
[1752020723662,0.08932834,108950.0,108940.0,0.5534158]
[1752020723917,0.12082834,108950.0,108940.0,0.5534158]
[1752020724622,0.11165058,108950.0,108940.0,0.60846456]
[1752020724830,0.13918419,108950.0,108940.0,0.60846456]
[1752020725044,0.12398419,108950.0,108940.0,0.60846456]
[1752020725676,0.11754934,108950.0,108940.0,0.60846456]
[1752020727691,0.12672752,108950.0,108940.0,0.60846456]
[1752020727894,0.12672744,108950.0,108940.0,0.60846456]
[1752020728740,0.11754934,108950.0,108940.0,0.60846456]
[1752020733467,0.10124934,108950.0,108940.0,0.5534158]
[1752020733670,0.11042752,108950.0,108940.0,0.5534158]
[1752020733981,0.12652752,108950.0,108940.0,0.5534158]
[1752020735096,0.11734934,108950.0,108940.0,0.5534158]
[1752020735722,0.12652752,108950.0,108940.0,0.5534158]
[1752020736612,0.14282752,108950.0,108940.0,0.5534158]
[1752020739350,0.13364934,108950.0,108940.0,0.5534158]
[1752020739595,0.12447133,108950.0,108940.0,0.4144158]
[1752020740083,0.11734934,108950.0,108940.0,0.4144158]
[1752020740811,0.13374934,108950.0,108940.0,0.4144158]
[1752020743256,0.11539349,108950.0,108940.0,0.4144158]
[1752020743472,0.08981573,108950.0,108940.0,0.4144158]
[1752020744016,0.23795366,108950.0,108940.0,0.4144158]
[1752020745427,0.25375366,108950.0,108940.0,0.4144158]
[1752020746491,0.25375366,108950.0,108940.0,0.43163906]
[1752020747128,0.03196742,108960.0,108950.0,0.21110498]
[1752020747322,0.18928159,108960.0,108950.0,0.28344264]
[1752020747603,0.18928151,108960.0,108950.0,0.28344264]
[1752020748586,0.19128151,108960.0,108950.0,0.28344264]
[1752020749000,0.05232151,108960.0,108950.0,0.28344264]
[1752020749235,0.19128151,108960.0,108950.0,0.28344264]
[1752020749841,0.20045868,108960.0,108950.0,0.28344264]
[1752020751571,0.03396742,108960.0,108950.0,0.28344264]
[1752020751913,0.17292742,108960.0,108950.0,0.58703304]
[1752020752102,0.17292742,108960.0,108950.0,0.28344264]
[1752020753549,0.17292742,108960.0,108950.0,0.28344132]
[1752020753766,0.18210442,108960.0,108950.0,0.28344132]
[1752020754654,0.17292742,108960.0,108950.0,0.28344132]
[1752020754872,0.18210434,108960.0,108950.0,0.28344132]
[1752020755732,0.04314434,108960.0,108950.0,0.28344132]
[1752020755930,0.18210434,108960.0,108950.0,0.28344132]
[1752020756342,0.04314434,108960.0,108950.0,0.28344132]
[1752020756552,0.18210434,108960.0,108950.0,0.28344132]
[1752020758742,0.17292742,108960.0,108950.0,0.28344132]
[1752020760816,0.18210442,108960.0,108950.0,0.28344132]
[1752020763420,0.04314442,108960.0,108950.0,0.28344132]
[1752020763627,0.18210434,108960.0,108950.0,0.28344132]
[1752020765572,0.19128143,108960.0,108950.0,0.28344132]
[1752020766213,0.03396742,108960.0,108950.0,0.28344132]
[1752020766370,0.17292742,108960.0,108950.0,0.28344132]
[1752020766579,0.18210442,108960.0,108950.0,0.28344132]
[1752020767008,0.17292742,108960.0,108950.0,0.28344132]
[1752020767161,0.18210434,108960.0,108950.0,0.28344132]
[1752020767857,0.17292742,108960.0,108950.0,0.28344132]
[1752020768885,0.18210434,108960.0,108950.0,0.28344132]
[1752020769470,0.19128143,108960.0,108950.0,0.28344132]
[1752020770032,0.18210434,108960.0,108950.0,0.28344132]
[1752020771448,0.19128143,108960.0,108950.0,0.28344132]
[1752020772082,0.2004586,108960.0,108950.0,0.28344132]
[1752020772518,0.19128143,108960.0,108950.0,0.28344132]
[1752020773399,0.20045868,108960.0,108950.0,0.28344132]
[1752020773598,0.19128143,108960.0,108950.0,0.28344132]
[1752020774104,0.20045877,108960.0,108950.0,0.28344132]
[1752020774525,0.20045868,108960.0,108950.0,0.28344132]
[1752020775285,0.20045868,108960.0,108950.0,0.2898986]
[1752020775491,0.20963602,108960.0,108950.0,0.2898986]
[1752020777348,0.21881344,108960.0,108950.0,0.2898986]
[1752020778024,0.39319061,108960.0,108950.0,0.28072075]
[1752020778247,0.38401336,108960.0,108950.0,0.28072075]
[1752020778487,0.3656586,108960.0,108950.0,0.12012514]
[1752020778918,0.3656586,108960.0,108950.0,0.06501074]
[1752020780175,0.3656586,108960.0,108950.0,0.07418926]
[1752020780789,0.2266986,108960.0,108950.0,0.06501074]
[1752020781079,0.3656186,108960.0,108950.0,0.06501074]
[1752020781290,0.7056186,108960.0,108950.0,0.02367922]
[1752020792847,0.5666986,108960.0,108950.0,0.02367922]
[1752020793046,0.7056586,108960.0,108950.0,0.02367922]
[1752020798457,0.7056586,108960.0,108950.0,0.02367228]
[1752020801430,0.7056586,108960.0,108950.0,0.02367308]
[1752020803355,0.7056586,108960.0,108950.0,0.00645114]
[1752020803569,0.22364879,108950.0,108940.0,0.25245498]
[1752020803777,0.36256879,108950.0,108940.0,0.25245498]
[1752020804742,0.36256879,108950.0,108940.0,0.25445498]
[1752020805151,0.36256879,108950.0,108940.0,0.24527613]
[1752020808296,0.36256879,108950.0,108940.0,0.30039053]
[1752020808935,0.36256879,108950.0,108940.0,0.31760815]
[1752020809532,0.36256879,108950.0,108940.0,0.326787]
[1752020809947,0.36256879,108950.0,108940.0,0.33324386]
[1752020812118,0.36256879,108950.0,108940.0,0.32406501]
[1752020815158,0.36256879,108950.0,108940.0,0.31760815]
[1752020817402,0.43628452,108950.0,108940.0,0.31760866]
[1752020819286,0.43628452,108950.0,108940.0,0.32678777]
[1752020822074,0.43628452,108950.0,108940.0,0.33596679]
[1752020823196,0.43628452,108950.0,108940.0,0.32678777]
[1752020823921,0.43628452,108950.0,108940.0,0.33596679]
[1752020828137,0.43628452,108950.0,108940.0,0.32678777]
[1752020831335,0.43628452,108950.0,108940.0,0.33596679]
[1752020831510,0.43628452,108950.0,108940.0,0.34514573]
[1752020833132,0.43628452,108950.0,108940.0,0.33596679]
[1752020833544,0.43628452,108950.0,108940.0,0.32678777]
[1752020833800,0.42710617,108950.0,108940.0,0.31760866]
[1752020834624,0.42710617,108950.0,108940.0,0.32678777]
[1752020835446,0.42710617,108950.0,108940.0,0.33596679]
[1752020835655,0.42710617,108950.0,108940.0,0.34514573]
[1752020841078,0.42710617,108950.0,108940.0,0.33596629]
[1752020841420,0.42710617,108950.0,108940.0,0.32678725]
[1752020844142,0.42710617,108950.0,108940.0,0.33596627]
[1752020846354,0.42677957,108950.0,108940.0,0.33596627]
[1752020846988,0.42677957,108950.0,108940.0,0.30843068]
[1752020849409,0.42677957,108950.0,108940.0,0.11566475]
[1752020849632,0.42677957,108950.0,108940.0,0.29925204]
[1752020849863,0.42677957,108950.0,108940.0,0.30843132]
[1752020850898,0.42677957,108950.0,108940.0,0.12484411]
[1752020851123,0.42677957,108950.0,108940.0,0.3084314]
[1752020851973,0.42677957,108950.0,108940.0,0.11566475]
[1752020852948,0.35306384,108950.0,108940.0,0.29925204]
[1752020853163,0.35306384,108950.0,108940.0,0.3084314]
[1752020854225,0.35306384,108950.0,108940.0,0.11566475]
[1752020856560,0.35302384,108950.0,108940.0,0.11566475]
[1752020872709,0.42673957,108950.0,108940.0,0.11566475]
[1752020872921,0.42673957,108950.0,108940.0,0.01921883]
[1752020873382,0.42673957,108950.0,108940.0,0.01821883]
[1752020873801,0.42773957,108950.0,108940.0,0.01821883]
[1752020874045,0.42773957,108950.0,108940.0,0.01721883]
[1752020874255,0.42873957,108950.0,108940.0,0.01721883]
[1752020877310,0.87471735,108950.0,108940.0,1e-08]
[1752020877521,0.91589813,108950.0,108940.0,0.00287187]
[1752020877720,0.91141813,108950.0,108940.0,0.00287187]
[1752020878149,0.86923735,108950.0,108940.0,0.00287187]
[1752020878355,0.86923735,108950.0,108940.0,0.00287186]
[1752020878571,0.86823735,108950.0,108940.0,0.00287186]
[1752020878992,0.87223735,108950.0,108940.0,0.00287186]
[1752020879225,0.57880733,108940.0,108930.0,0.0020747]
[1752020879429,0.67024426,108940.0,108930.0,0.00494672]
[1752020880861,0.72894,108940.0,108930.0,0.00494672]
[1752020881103,0.73194,108940.0,108930.0,0.00494672]
[1752020882122,0.8709,108940.0,108930.0,0.00494672]
[1752020882912,0.73194,108940.0,108930.0,0.00494672]
[1752020883114,0.8709,108940.0,108930.0,0.00494672]
[1752020886942,1.3666,108940.0,108930.0,0.00494672]
[1752020889396,1.3666,108940.0,108930.0,0.02211154]
[1752020892045,1.3666,108940.0,108930.0,0.02211031]
[1752020893349,1.22764,108940.0,108930.0,0.02211031]